[Event "2025 Chess.com Botwinnik Rapid toernooi"]
[Site "Zoetermeer, Netherlands"]
[Date "????.??.??"]
[Round "6.4"]
[White "Timmerman, Gert"]
[Black "Habig, Bryan"]
[Result "1/2-1/2"]
[TimeControl "15+5"]
[WhiteTitle "FM"]
[WhiteFideId "6937590"]
[BlackFideId "8490900"]
[WhiteElo "2171"]
[BlackElo "2040"]

1. e4 {[%clk 00:15:07]} {[%emt 00:00:02]} c6 {[%clk 00:15:09]} {[%emt
00:00:02]} 2. d4 {[%clk 00:15:10]} {[%emt 00:00:01]} d5 {[%clk 00:15:12]}
{[%emt 00:00:02]} 3. Nd2 {[%clk 00:15:14]} dxe4 {[%clk 00:15:16]} {[%emt
00:00:01]} 4. Nxe4 {[%clk 00:15:17]} {[%emt 00:00:02]} Bf5 {[%clk 00:15:20]}
{[%emt 00:00:02]} 5. Ng3 {[%clk 00:15:20]} {[%emt 00:00:01]} Bg6 {[%clk
00:15:23]} {[%emt 00:00:02]} 6. Nf3 {[%clk 00:15:24]} {[%emt 00:00:02]} Nd7
{[%clk 00:15:27]} {[%emt 00:00:01]} 7. h4 {[%clk 00:15:26]} {[%emt 00:00:02]}
h6 {[%clk 00:15:31]} {[%emt 00:00:02]} 8. h5 {[%clk 00:15:30]} Bh7 {[%clk
00:15:35]} {[%emt 00:00:01]} 9. Bd3 {[%clk 00:15:34]} {[%emt 00:00:01]} Bxd3
{[%clk 00:15:38]} {[%emt 00:00:01]} 10. Qxd3 {[%clk 00:15:38]} {[%emt
00:00:02]} Ngf6 {[%clk 00:15:39]} {[%emt 00:00:04]} 11. Bd2 {[%clk 00:15:33]}
{[%emt 00:00:10]} e6 {[%clk 00:15:42]} {[%emt 00:00:01]} 12. Qe2 {[%clk
00:15:36]} {[%emt 00:00:02]} Be7 {[%clk 00:15:46]} {[%emt 00:00:01]} 13. O-O-O
{[%clk 00:15:36]} {[%emt 00:00:05]} O-O {[%clk 00:15:48]} {[%emt 00:00:03]} 14.
Kb1 {[%clk 00:14:48]} {[%emt 00:00:53]} Qc7 {[%clk 00:14:59]} {[%emt 00:00:54]}
15. Ne5 {[%clk 00:14:28]} {[%emt 00:00:26]} c5 {[%clk 00:14:55]} {[%emt
00:00:09]} 16. Nxd7 {[%clk 00:13:41]} {[%emt 00:00:51]} Nxd7 {[%clk 00:14:48]}
{[%emt 00:00:11]} 17. d5 {[%clk 00:12:53]} {[%emt 00:00:54]} Qe5 {[%clk
00:13:58]} {[%emt 00:00:55]} 18. dxe6 {[%clk 00:10:01]} {[%emt 00:02:57]} Qxe6
{[%clk 00:13:23]} {[%emt 00:00:40]} 19. Bxh6 {[%clk 00:08:51]} {[%emt
00:01:15]} Qxe2 {[%clk 00:12:26]} {[%emt 00:01:02]} 20. Nxe2 {[%clk 00:08:54]}
{[%emt 00:00:02]} Ne5 {[%clk 00:12:18]} {[%emt 00:00:13]} 21. Be3 {[%clk
00:07:18]} {[%emt 00:01:42]} Ng4 {[%clk 00:11:15]} {[%emt 00:01:08]} 22. Nc3
{[%clk 00:07:09]} {[%emt 00:00:14]} Nxe3 {[%clk 00:11:06]} {[%emt 00:00:14]} 23.
fxe3 {[%clk 00:07:12]} {[%emt 00:00:01]} Bg5 {[%clk 00:11:07]} {[%emt
00:00:04]} 24. e4 {[%clk 00:06:49]} {[%emt 00:00:29]} Rad8 {[%clk 00:10:44]}
{[%emt 00:00:27]} 25. Rd5 {[%clk 00:06:03]} {[%emt 00:00:44]} Bd2 {[%clk
00:09:44]} {[%emt 00:01:12]} 26. Rd1 {[%clk 00:05:36]} {[%emt 00:00:32]} Rxd5
{[%clk 00:09:43]} {[%emt 00:00:06]} 27. exd5 {[%clk 00:05:24]} {[%emt
00:00:17]} Bxc3 {[%clk 00:09:46]} {[%emt 00:00:02]} 28. bxc3 {[%clk 00:05:27]}
{[%emt 00:00:01]} c4 {[%clk 00:09:31]} {[%emt 00:00:21]} 29. a4 {[%clk
00:05:11]} {[%emt 00:00:22]} Rd8 {[%clk 00:09:19]} {[%emt 00:00:17]} 30. Kb2
{[%clk 00:04:58]} {[%emt 00:00:18]} Kf8 {[%clk 00:09:13]} {[%emt 00:00:11]} 31.
Ka3 {[%clk 00:05:02]} {[%emt 00:00:01]} a5 {[%clk 00:09:17]} 32. Rd4 {[%clk
00:04:29]} {[%emt 00:00:38]} Ke7 {[%clk 00:09:07]} {[%emt 00:00:15]} 33. Rxc4
{[%clk 00:04:10]} {[%emt 00:00:23]} Rxd5 {[%clk 00:08:52]} {[%emt 00:00:21]} 34.
Rc7+ {[%clk 00:04:14]} {[%emt 00:00:01]} Kf6 {[%clk 00:08:55]} {[%emt
00:00:02]} 35. Rxb7 {[%clk 00:04:16]} {[%emt 00:00:02]} Rxh5 {[%clk 00:08:58]}
{[%emt 00:00:02]} 36. Rb5 {[%clk 00:04:16]} {[%emt 00:00:06]} Rh2 {[%clk
00:08:51]} {[%emt 00:00:12]} 37. Rxa5 {[%clk 00:04:10]} {[%emt 00:00:12]} Rxg2
{[%clk 00:08:54]} {[%emt 00:00:01]} 38. Ra6+ {[%clk 00:03:43]} {[%emt
00:00:32]} Ke5 {[%clk 00:08:58]} {[%emt 00:00:02]} 39. Ra7 {[%clk 00:03:39]}
{[%emt 00:00:08]} Rxc2 {[%emt 00:00:11]} 40. Kb3 {[%clk 00:03:29]} {[%emt
00:00:04]} Rf2 {[%clk 00:09:01]} {[%emt 00:00:05]} 41. a5 {[%clk 00:03:34]}
{[%emt 00:00:02]} g5 {[%clk 00:09:04]} {[%emt 00:00:03]} 42. a6 {[%clk
00:03:37]} {[%emt 00:00:02]} Rf1 {[%clk 00:09:04]} {[%emt 00:00:04]} 43. Rb7
{[%clk 00:03:07]} {[%emt 00:00:34]} Ra1 {[%clk 00:09:02]} {[%emt 00:00:08]} 44.
Rb5+ {[%clk 00:03:11]} {[%emt 00:00:02]} Kf4 {[%emt 00:00:39]} 45. Rb4+ {[%clk
00:03:14]} {[%emt 00:00:01]} Ke5 {[%emt 00:00:15]} 46. Ra4 {[%clk 00:02:50]}
{[%emt 00:00:28]} Rb1+ {[%clk 00:08:17]} {[%emt 00:00:07]} 47. Kc4 {[%clk
00:02:53]} {[%emt 00:00:02]} Rb8 {[%clk 00:08:21]} {[%emt 00:00:01]} 48. Kc5
{[%clk 00:02:49]} {[%emt 00:00:09]} f5 {[%clk 00:07:58]} {[%emt 00:00:27]} 49.
Kc6 {[%clk 00:02:25]} {[%emt 00:00:30]} Rc8+ {[%clk 00:07:21]} {[%emt
00:00:42]} 50. Kb7 {[%clk 00:02:16]} {[%emt 00:00:13]} Rg8 {[%clk 00:06:53]}
{[%emt 00:00:33]} 51. Rc4 {[%clk 00:02:05]} {[%emt 00:00:16]} g4 {[%clk
00:06:35]} {[%emt 00:00:24]} 52. Rc5+ {[%clk 00:01:21]} {[%emt 00:00:48]} Kf4
{[%clk 00:06:33]} {[%emt 00:00:07]} 53. a7 {[%clk 00:00:57]} {[%emt 00:00:30]}
g3 {[%clk 00:06:36]} {[%emt 00:00:01]} 54. Rc8 {[%clk 00:00:54]} {[%emt
00:00:09]} Rxc8 {[%clk 00:06:27]} {[%emt 00:00:13]} 55. Kxc8 {[%clk 00:00:58]}
{[%emt 00:00:01]} g2 {[%clk 00:06:31]} {[%emt 00:00:02]} 56. a8=Q {[%clk
00:01:01]} {[%emt 00:00:02]} g1=Q {[%clk 00:06:32]} {[%emt 00:00:03]} 57. Qa4+
{[%clk 00:00:56]} {[%emt 00:00:10]} Kf3 {[%emt 00:00:22]} 58. Qc6+ {[%clk
00:00:58]} Ke2 {[%clk 00:06:02]} {[%emt 00:00:18]} 59. Qe6+ {[%clk 00:01:01]}
{[%emt 00:00:05]} Qe3 {[%clk 00:06:04]} {[%emt 00:00:02]} 60. Qxf5 {[%clk
00:00:57]} {[%emt 00:00:09]} Qxc3+ {[%clk 00:06:06]} {[%emt 00:00:03]} 1/2-1/2

[Event "2025 Chess.com Botwinnik Rapid toernooi"]
[Site "Zoetermeer, Netherlands"]
[Date "????.??.??"]
[Round "6.5"]
[White "Tjiam, Dharma"]
[Black "Van der Werf, Joël"]
[Result "1-0"]
[TimeControl "15+5"]
[WhiteTitle "IM"]
[WhiteFideId "6383751"]
[BlackFideId "8301040"]
[WhiteElo "2364"]
[BlackElo "2113"]

1. d4 {[%clk 00:15:08]} {[%emt 00:00:01]} Nf6 {[%clk 00:15:09]} {[%emt
00:00:02]} 2. c4 {[%clk 00:15:12]} e6 {[%clk 00:15:12]} {[%emt 00:00:01]} 3.
Nc3 {[%clk 00:15:16]} {[%emt 00:00:01]} Bb4 {[%clk 00:15:16]} 4. e3 {[%clk
00:15:20]} {[%emt 00:00:02]} O-O {[%clk 00:15:17]} {[%emt 00:00:04]} 5. Bd3
{[%clk 00:15:24]} {[%emt 00:00:01]} d5 {[%clk 00:15:20]} {[%emt 00:00:02]} 6.
Nge2 {[%clk 00:15:26]} {[%emt 00:00:03]} b6 {[%clk 00:14:43]} {[%emt 00:00:42]}
7. a3 {[%clk 00:14:40]} {[%emt 00:00:52]} Be7 {[%clk 00:14:38]} {[%emt
00:00:09]} 8. O-O {[%clk 00:14:38]} {[%emt 00:00:07]} Bb7 {[%clk 00:14:34]}
{[%emt 00:00:10]} 9. b3 {[%clk 00:14:30]} {[%emt 00:00:13]} Nbd7 {[%clk
00:14:36]} {[%emt 00:00:03]} 10. Bb2 {[%clk 00:14:32]} {[%emt 00:00:03]} c5
{[%clk 00:14:09]} {[%emt 00:00:32]} 11. cxd5 {[%clk 00:14:23]} {[%emt
00:00:14]} exd5 {[%clk 00:14:13]} {[%emt 00:00:01]} 12. Rc1 {[%clk 00:13:58]}
{[%emt 00:00:29]} Re8 {[%clk 00:12:46]} {[%emt 00:01:31]} 13. Bb1 {[%clk
00:13:08]} {[%emt 00:00:55]} Rc8 {[%clk 00:10:32]} {[%emt 00:02:19]} 14. dxc5
{[%clk 00:12:00]} {[%emt 00:01:14]} Nxc5 {[%clk 00:10:19]} {[%emt 00:00:18]} 15.
Bf5 {[%clk 00:11:18]} {[%emt 00:00:47]} Ra8 {[%clk 00:09:58]} {[%emt 00:00:26]}
16. Nf4 {[%clk 00:09:49]} {[%emt 00:01:34]} Bd6 {[%clk 00:09:12]} {[%emt
00:00:51]} 17. Nce2 {[%clk 00:08:29]} {[%emt 00:01:25]} Be5 {[%clk 00:07:57]}
{[%emt 00:01:20]} 18. Bxe5 {[%clk 00:08:12]} {[%emt 00:00:22]} Rxe5 {[%clk
00:08:00]} {[%emt 00:00:02]} 19. Bb1 {[%clk 00:08:07]} {[%emt 00:00:10]} Nce4
{[%clk 00:07:27]} {[%emt 00:00:38]} 20. Qd4 {[%clk 00:07:50]} {[%emt 00:00:22]}
Re8 {[%clk 00:07:31]} {[%emt 00:00:02]} 21. Rfd1 {[%clk 00:07:44]} {[%emt
00:00:10]} Qe7 {[%clk 00:07:28]} {[%emt 00:00:08]} 22. b4 {[%clk 00:07:37]}
{[%emt 00:00:12]} Rad8 {[%clk 00:06:38]} {[%emt 00:00:55]} 23. Ba2 {[%clk
00:07:29]} {[%emt 00:00:13]} h6 {[%clk 00:03:50]} {[%emt 00:02:53]} 24. Nc3
{[%clk 00:06:26]} {[%emt 00:01:07]} Nxc3 {[%clk 00:02:46]} {[%emt 00:01:10]} 25.
Rxc3 {[%clk 00:06:23]} {[%emt 00:00:08]} Qd7 {[%clk 00:02:35]} {[%emt
00:00:16]} 26. Qd3 {[%clk 00:05:04]} {[%emt 00:01:23]} d4 {[%clk 00:01:42]}
{[%emt 00:00:58]} 27. Rcc1 {[%clk 00:04:44]} {[%emt 00:00:25]} dxe3 {[%clk
00:01:23]} {[%emt 00:00:24]} 28. Qxd7 {[%clk 00:04:47]} {[%emt 00:00:01]} Rxd7
{[%clk 00:01:27]} 29. Rxd7 {[%clk 00:04:48]} {[%emt 00:00:04]} exf2+ {[%clk
00:01:26]} {[%emt 00:00:07]} 30. Kxf2 {[%clk 00:04:52]} {[%emt 00:00:01]} Nxd7
{[%clk 00:01:30]} {[%emt 00:00:01]} 31. Rc7 {[%clk 00:04:53]} {[%emt 00:00:04]}
Bc8 {[%clk 00:01:34]} {[%emt 00:00:01]} 32. Rxa7 {[%clk 00:04:54]} {[%emt
00:00:04]} g5 {[%clk 00:01:08]} {[%emt 00:00:31]} 33. Nd5 {[%clk 00:04:48]}
{[%emt 00:00:10]} Kg7 {[%clk 00:01:06]} {[%emt 00:00:07]} 34. h3 {[%clk
00:04:02]} {[%emt 00:00:51]} Ne5 {[%clk 00:01:11]} {[%emt 00:00:01]} 35. Nxb6
{[%clk 00:04:02]} {[%emt 00:00:04]} Nd3+ {[%clk 00:00:48]} {[%emt 00:00:28]} 36.
Kg1 {[%clk 00:03:57]} {[%emt 00:00:10]} Be6 {[%clk 00:00:53]} 37. Bxe6 {[%clk
00:03:42]} {[%emt 00:00:20]} Rxe6 {[%clk 00:00:57]} {[%emt 00:00:01]} 38. Nd5
{[%clk 00:03:40]} {[%emt 00:00:07]} Re1+ {[%clk 00:00:57]} {[%emt 00:00:04]} 39.
Kh2 {[%clk 00:03:43]} {[%emt 00:00:02]} h5 {[%clk 00:01:01]} {[%emt 00:00:02]}
40. Re7 {[%clk 00:03:26]} {[%emt 00:00:21]} Ra1 {[%clk 00:00:58]} {[%emt
00:00:08]} 41. Re3 {[%clk 00:03:13]} {[%emt 00:00:18]} Nf2 {[%clk 00:00:59]}
{[%emt 00:00:05]} 42. Kg3 {[%clk 00:03:08]} {[%emt 00:00:09]} Nd1 {[%clk
00:00:51]} {[%emt 00:00:14]} 43. Rb3 {[%clk 00:03:05]} {[%emt 00:00:07]} Kg6
{[%clk 00:00:47]} {[%emt 00:00:10]} 44. b5 {[%clk 00:03:05]} {[%emt 00:00:05]}
h4+ {[%clk 00:00:49]} {[%emt 00:00:03]} 45. Kf3 {[%clk 00:03:09]} {[%emt
00:00:01]} f5 {[%clk 00:00:38]} {[%emt 00:00:16]} 46. b6 {[%clk 00:02:58]}
{[%emt 00:00:16]} Ra2 {[%clk 00:00:39]} {[%emt 00:00:04]} 47. Ne7+ {[%clk
00:02:49]} {[%emt 00:00:14]} Kf6 {[%clk 00:00:43]} 48. Nxf5 {[%clk 00:02:53]}
Kxf5 {[%clk 00:00:45]} {[%emt 00:00:04]} 49. Rb5+ {[%clk 00:02:57]} {[%emt
00:00:01]} Ke6 {[%clk 00:00:41]} {[%emt 00:00:09]} 50. b7 {[%clk 00:03:01]}
Rxa3+ {[%clk 00:00:37]} {[%emt 00:00:09]} 51. Kg4 {[%clk 00:03:02]} {[%emt
00:00:03]} Ne3+ {[%clk 00:00:18]} {[%emt 00:00:25]} 52. Kh5 {[%clk 00:03:05]}
{[%emt 00:00:01]} Ra7 {[%clk 00:00:12]} {[%emt 00:00:12]} 53. b8=Q {[%clk
00:03:06]} {[%emt 00:00:05]} Kd5 {[%emt 00:00:13]} 1-0

[Event "2025 Chess.com Botwinnik Rapid toernooi"]
[Site "Zoetermeer, Netherlands"]
[Date "????.??.??"]
[Round "6.6"]
[White "Bekker, Stefan"]
[Black "Schrik, Rachid"]
[Result "1-0"]
[TimeControl "15+5"]
[WhiteTitle "FM"]
[BlackTitle "CM"]
[WhiteFideId "8083141"]
[BlackFideId "7623528"]
[WhiteElo "2333"]
[BlackElo "2087"]

1. e4 {[%clk 00:15:07]} {[%emt 00:00:02]} c5 {[%clk 00:15:08]} {[%emt
00:00:02]} 2. Nf3 {[%clk 00:15:10]} {[%emt 00:00:02]} Nc6 {[%clk 00:15:11]}
{[%emt 00:00:02]} 3. Bb5 {[%clk 00:15:13]} {[%emt 00:00:02]} Nf6 {[%clk
00:15:14]} {[%emt 00:00:03]} 4. Bxc6 {[%clk 00:15:14]} {[%emt 00:00:04]} dxc6
{[%clk 00:15:15]} {[%emt 00:00:04]} 5. d3 {[%clk 00:15:14]} {[%emt 00:00:05]}
Bg4 {[%clk 00:15:12]} {[%emt 00:00:08]} 6. h3 {[%clk 00:15:16]} {[%emt
00:00:03]} Bh5 {[%clk 00:15:03]} {[%emt 00:00:13]} 7. Be3 {[%clk 00:14:29]}
{[%emt 00:00:53]} Nd7 {[%clk 00:14:42]} {[%emt 00:00:26]} 8. g4 {[%clk
00:14:25]} {[%emt 00:00:09]} Bg6 {[%clk 00:14:45]} {[%emt 00:00:01]} 9. Nbd2
{[%clk 00:13:43]} {[%emt 00:00:48]} e5 {[%clk 00:14:35]} {[%emt 00:00:14]} 10.
Nc4 {[%clk 00:13:14]} {[%emt 00:00:34]} f6 {[%clk 00:13:49]} {[%emt 00:00:51]}
11. a4 {[%clk 00:13:05]} {[%emt 00:00:15]} a5 {[%clk 00:13:16]} {[%emt
00:00:37]} 12. Nh4 {[%clk 00:12:01]} {[%emt 00:01:09]} Bf7 {[%clk 00:12:54]}
{[%emt 00:00:26]} 13. Nf5 {[%clk 00:11:52]} {[%emt 00:00:15]} Qc7 {[%clk
00:12:32]} {[%emt 00:00:27]} 14. Qd2 {[%clk 00:11:40]} {[%emt 00:00:17]} h5
{[%clk 00:11:16]} {[%emt 00:01:21]} 15. Rg1 {[%clk 00:09:09]} {[%emt 00:02:37]}
g6 {[%clk 00:08:24]} {[%emt 00:02:56]} 16. Ng3 {[%clk 00:09:06]} {[%emt
00:00:09]} hxg4 {[%clk 00:08:18]} {[%emt 00:00:12]} 17. hxg4 {[%clk 00:09:08]}
{[%emt 00:00:02]} Be6 {[%clk 00:07:50]} {[%emt 00:00:32]} 18. g5 {[%clk
00:08:18]} {[%emt 00:00:55]} f5 {[%clk 00:07:42]} {[%emt 00:00:13]} 19. f4
{[%clk 00:08:22]} Bxc4 {[%clk 00:05:33]} {[%emt 00:02:14]} 20. dxc4 {[%clk
00:08:19]} {[%emt 00:00:08]} O-O-O {[%clk 00:05:33]} {[%emt 00:00:06]} 21.
O-O-O {[%clk 00:07:06]} {[%emt 00:01:17]} fxe4 {[%clk 00:04:31]} {[%emt
00:01:06]} 22. f5 {[%clk 00:06:01]} {[%emt 00:01:11]} gxf5 {[%clk 00:04:20]}
{[%emt 00:00:16]} 23. Nxf5 {[%clk 00:05:59]} {[%emt 00:00:07]} Nb8 {[%clk
00:01:39]} {[%emt 00:02:47]} 24. Qxd8+ {[%clk 00:05:48]} {[%emt 00:00:16]} Qxd8
{[%clk 00:01:42]} {[%emt 00:00:02]} 25. Rxd8+ {[%clk 00:05:50]} Kxd8 {[%clk
00:01:45]} {[%emt 00:00:05]} 26. g6 {[%clk 00:05:53]} {[%emt 00:00:02]} Nd7
{[%clk 00:01:04]} {[%emt 00:00:46]} 27. g7 {[%clk 00:05:54]} {[%emt 00:00:05]}
Bxg7 {[%clk 00:01:04]} {[%emt 00:00:05]} 28. Nxg7 {[%clk 00:05:48]} {[%emt
00:00:11]} Rh3 {[%clk 00:01:00]} {[%emt 00:00:09]} 29. Bg5+ {[%clk 00:03:56]}
{[%emt 00:01:57]} Kc7 {[%clk 00:00:51]} {[%emt 00:00:14]} 30. Rd1 {[%clk
00:03:08]} {[%emt 00:00:53]} b6 {[%clk 00:00:13]} {[%emt 00:00:43]} 31. Ne8+
{[%clk 00:03:07]} {[%emt 00:00:05]} Kc8 {[%clk 00:00:15]} {[%emt 00:00:04]} 32.
Nd6+ {[%clk 00:03:11]} {[%emt 00:00:01]} Kc7 {[%clk 00:00:17]} {[%emt
00:00:03]} 33. Nxe4 {[%clk 00:03:13]} {[%emt 00:00:03]} Rh2 {[%clk 00:00:16]}
{[%emt 00:00:05]} 34. Re1 {[%clk 00:03:07]} {[%emt 00:00:10]} Nf8 {[%clk
00:00:11]} {[%emt 00:00:10]} 35. Bf6 {[%clk 00:03:08]} {[%emt 00:00:05]} Nd7
{[%clk 00:00:08]} {[%emt 00:00:08]} 36. b3 {[%clk 00:02:59]} {[%emt 00:00:14]}
Rg2 {[%clk 00:00:10]} {[%emt 00:00:03]} 37. Be7 {[%clk 00:02:56]} {[%emt
00:00:07]} Rg4 {[%clk 00:00:08]} {[%emt 00:00:07]} 38. Bd6+ {[%clk 00:02:48]}
{[%emt 00:00:13]} Kb7 {[%clk 00:00:12]} {[%emt 00:00:01]} 39. Nd2 {[%clk
00:02:49]} {[%emt 00:00:04]} Rg5 {[%clk 00:00:15]} {[%emt 00:00:02]} 40. Nf3
{[%clk 00:02:52]} {[%emt 00:00:03]} Rf5 {[%clk 00:00:18]} {[%emt 00:00:03]} 41.
Nxe5 {[%clk 00:02:54]} {[%emt 00:00:03]} Nf6 {[%clk 00:00:20]} {[%emt
00:00:03]} 42. Nd3 {[%clk 00:02:49]} {[%emt 00:00:09]} Ng4 {[%clk 00:00:22]}
{[%emt 00:00:03]} 43. Re7+ {[%clk 00:02:36]} {[%emt 00:00:18]} Kc8 {[%clk
00:00:26]} {[%emt 00:00:01]} 44. Ne5 {[%clk 00:01:46]} {[%emt 00:00:55]} Nxe5
{[%clk 00:00:19]} {[%emt 00:00:13]} 45. Bxe5 {[%clk 00:01:47]} {[%emt
00:00:04]} Kd8 {[%clk 00:00:18]} {[%emt 00:00:05]} 46. Re6 {[%clk 00:01:44]}
{[%emt 00:00:08]} Kd7 {[%clk 00:00:20]} {[%emt 00:00:03]} 47. Rd6+ {[%clk
00:01:45]} {[%emt 00:00:04]} Ke7 {[%clk 00:00:12]} {[%emt 00:00:13]} 48. Bg3
{[%clk 00:01:34]} {[%emt 00:00:16]} Rf3 {[%clk 00:00:08]} {[%emt 00:00:09]} 49.
Rd3 {[%clk 00:01:29]} {[%emt 00:00:10]} Rf1+ {[%clk 00:00:11]} {[%emt
00:00:02]} 50. Kb2 {[%clk 00:01:32]} {[%emt 00:00:01]} Rg1 {[%clk 00:00:14]}
{[%emt 00:00:02]} 51. Bc7 {[%clk 00:01:36]} {[%emt 00:00:01]} 1-0

[Event "2025 Chess.com Botwinnik Rapid toernooi"]
[Site "Zoetermeer, Netherlands"]
[Date "????.??.??"]
[Round "6.8"]
[White "Van den Berg, Jaap"]
[Black "Wagner, Andr"]
[Result "0-1"]
[TimeControl "15+5"]
[WhiteFideId "7651391"]
[BlackFideId "7460365"]
[WhiteElo "1842"]
[BlackElo "1802"]

1. e4 {[%clk 00:15:08]} {[%emt 00:00:02]} e5 {[%clk 00:15:09]} {[%emt
00:00:01]} 2. Nf3 {[%clk 00:15:10]} {[%emt 00:00:02]} Nc6 {[%clk 00:15:12]}
{[%emt 00:00:03]} 3. Bb5 {[%clk 00:15:13]} {[%emt 00:00:02]} a6 {[%clk
00:15:15]} {[%emt 00:00:01]} 4. Ba4 {[%clk 00:15:17]} {[%emt 00:00:02]} Nf6
{[%clk 00:15:19]} {[%emt 00:00:02]} 5. d3 {[%clk 00:15:19]} {[%emt 00:00:02]}
b5 {[%clk 00:15:16]} {[%emt 00:00:07]} 6. Bb3 {[%clk 00:15:22]} {[%emt
00:00:02]} d6 {[%clk 00:15:20]} {[%emt 00:00:02]} 7. c3 {[%clk 00:15:26]}
{[%emt 00:00:02]} Be7 {[%clk 00:15:19]} {[%emt 00:00:05]} 8. Nbd2 {[%clk
00:15:26]} {[%emt 00:00:04]} Na5 {[%clk 00:15:18]} {[%emt 00:00:06]} 9. Bc2
{[%clk 00:15:29]} {[%emt 00:00:02]} c5 {[%clk 00:15:21]} {[%emt 00:00:03]} 10.
Nf1 {[%clk 00:15:17]} {[%emt 00:00:16]} O-O {[%clk 00:15:20]} {[%emt 00:00:06]}
11. Ng3 {[%clk 00:15:20]} {[%emt 00:00:02]} Nc6 {[%clk 00:15:11]} {[%emt
00:00:14]} 12. O-O {[%clk 00:15:20]} {[%emt 00:00:04]} Re8 {[%clk 00:14:29]}
{[%emt 00:00:48]} 13. h3 {[%clk 00:15:18]} {[%emt 00:00:07]} Bf8 {[%clk
00:14:31]} {[%emt 00:00:02]} 14. Bg5 {[%clk 00:15:07]} {[%emt 00:00:16]} g6
{[%clk 00:14:32]} {[%emt 00:00:04]} 15. d4 {[%clk 00:14:23]} {[%emt 00:00:49]}
Bg7 {[%clk 00:14:06]} {[%emt 00:00:32]} 16. d5 {[%clk 00:14:18]} {[%emt
00:00:10]} Ne7 {[%clk 00:12:41]} {[%emt 00:01:30]} 17. Qd2 {[%clk 00:13:53]}
{[%emt 00:00:30]} Kh8 {[%clk 00:12:21]} {[%emt 00:00:25]} 18. a4 {[%clk
00:12:08]} {[%emt 00:01:50]} Bd7 {[%clk 00:12:11]} {[%emt 00:00:15]} 19. b3
{[%clk 00:11:55]} {[%emt 00:00:19]} Neg8 {[%clk 00:11:46]} {[%emt 00:00:31]} 20.
a5 {[%clk 00:10:53]} {[%emt 00:01:07]} Qe7 {[%clk 00:10:55]} {[%emt 00:00:55]}
21. b4 {[%clk 00:10:29]} {[%emt 00:00:29]} c4 {[%clk 00:10:53]} {[%emt
00:00:06]} 22. Be3 {[%clk 00:10:29]} {[%emt 00:00:05]} Rec8 {[%clk 00:09:58]}
{[%emt 00:01:00]} 23. Nh2 {[%clk 00:09:22]} {[%emt 00:01:11]} h5 {[%clk
00:08:43]} {[%emt 00:01:21]} 24. Bg5 {[%clk 00:08:16]} {[%emt 00:01:10]} Kh7
{[%clk 00:08:37]} {[%emt 00:00:13]} 25. f4 {[%clk 00:07:57]} {[%emt 00:00:24]}
Bh6 {[%clk 00:08:25]} {[%emt 00:00:17]} 26. f5 {[%clk 00:07:01]} {[%emt
00:01:01]} Rf8 {[%clk 00:07:09]} {[%emt 00:01:20]} 27. Be3 {[%clk 00:06:18]}
{[%emt 00:00:47]} Bxe3+ {[%clk 00:06:02]} {[%emt 00:01:13]} 28. Qxe3 {[%clk
00:06:15]} {[%emt 00:00:07]} h4 {[%clk 00:06:03]} {[%emt 00:00:04]} 29. Ne2
{[%clk 00:05:18]} {[%emt 00:01:02]} Nh5 {[%clk 00:06:00]} {[%emt 00:00:09]} 30.
Bd1 {[%clk 00:04:55]} {[%emt 00:00:27]} g5 {[%clk 00:05:08]} {[%emt 00:00:57]}
31. Qf3 {[%clk 00:04:25]} {[%emt 00:00:34]} Ngf6 {[%clk 00:04:49]} {[%emt
00:00:26]} 32. Ng4 {[%clk 00:04:13]} {[%emt 00:00:17]} Kg7 {[%clk 00:04:21]}
{[%emt 00:00:32]} 33. Kh2 {[%clk 00:03:47]} {[%emt 00:00:31]} Nf4 {[%clk
00:03:21]} {[%emt 00:01:06]} 34. Nxf4 {[%clk 00:03:34]} {[%emt 00:00:17]} exf4
{[%clk 00:03:21]} {[%emt 00:00:05]} 35. Bc2 {[%clk 00:03:20]} {[%emt 00:00:19]}
Nxg4+ {[%clk 00:02:49]} {[%emt 00:00:38]} 36. Qxg4 {[%clk 00:03:20]} {[%emt
00:00:04]} f6 {[%clk 00:02:52]} {[%emt 00:00:02]} 37. Rxf4 {[%clk 00:03:15]}
{[%emt 00:00:10]} Qe5 {[%clk 00:02:56]} {[%emt 00:00:02]} 38. g3 {[%clk
00:02:36]} {[%emt 00:00:44]} hxg3+ {[%clk 00:02:59]} {[%emt 00:00:02]} 39. Kxg3
{[%clk 00:02:23]} {[%emt 00:00:17]} Qxf4+ {[%clk 00:03:02]} {[%emt 00:00:03]}
40. Qxf4 {[%clk 00:02:25]} {[%emt 00:00:04]} gxf4+ {[%clk 00:03:05]} {[%emt
00:00:02]} 41. Kxf4 {[%clk 00:02:28]} {[%emt 00:00:01]} Rg8 {[%clk 00:03:06]}
{[%emt 00:00:04]} 42. h4 {[%clk 00:02:23]} {[%emt 00:00:11]} Kh6 {[%clk
00:03:09]} {[%emt 00:00:02]} 43. Rh1 {[%clk 00:02:17]} {[%emt 00:00:08]} Rae8
{[%clk 00:03:12]} {[%emt 00:00:04]} 44. Bd1 {[%clk 00:02:17]} {[%emt 00:00:05]}
Rg7 {[%clk 00:02:53]} {[%emt 00:00:25]} 45. Rh3 {[%clk 00:02:09]} {[%emt
00:00:12]} Re5 {[%clk 00:02:40]} {[%emt 00:00:18]} 46. Bf3 {[%clk 00:01:58]}
{[%emt 00:00:16]} Be8 {[%clk 00:02:33]} {[%emt 00:00:13]} 47. Ke3 {[%clk
00:01:47]} {[%emt 00:00:15]} Bh5 {[%clk 00:02:34]} {[%emt 00:00:04]} 48. Kf4
{[%clk 00:01:40]} {[%emt 00:00:13]} Bxf3 {[%clk 00:02:35]} {[%emt 00:00:04]} 49.
Kxf3 {[%clk 00:01:43]} {[%emt 00:00:01]} Kh5 {[%clk 00:02:35]} {[%emt
00:00:05]} 0-1